Workbook

Sheet Instruções
E2: Indicadores de Recursos Humanos
E5: Cortesia do site Corellis Page
B7: Esta é uma contribuição aos colegas de Recursos Humanos, onde ajudo a criar os indicadores mais comuns.
B9: Há outros até mais importantes, mas não são generalizáveis, e portanto há a impossibilidade de se colocar, em
B10: um trabalho como este, todas as variáveis.
B12: Segue abaixo, algumas instruções que lhe ajudarão a utilizar bem esta planilha.
B14: Tabela de dados
C16: É nesta planilha em que são inseridos os dados para a obtenção dos índices.
C18: Os dados são inseridos nas células com letras em azul.
C29: As células em verde são cálculos feitos de acordo com o calendário do mês e ano.
C31: O ano você define clicando nos botões, até aparecer o ano que deseja criar o índice.
C36: Os valores possíveis estão entre 2009 e 2050. Não tem os índices do ano passado? Aproveite para fazer agora!
C38: Todas as datas como dias úteis, sábados, domingos e feriados são ajustadas pelo ano.
C40: Para ter um cálculo correto dos dias trabalhados, você deve informar se sua empresa trabalha, ou não, aos
C41: sábados.
B46: Calendário
C48: Para usar a planilha, é necessário verificar se todos os feriados de sua cidade e estado estão apontados no
C49: calendário. Se o calendário não estiver atualizado os índices sairão errados.
C51: As datas constantes no formato original são feriados nacionais e os da Cidade de São Paulo, capital do
C52: Estado de São Paulo.
C54: Altere as datas constantes no quadro verde.
C55: Obs: | D55: As datas referente ao carnaval e Páscoa são datas móveis, estão em vermelho, e não podem
D56: ser alteradas.
B59: Indicadores
C61: Cuidado: | D61: Esta planilha está desprotegida para permitir que você altere os meses que aparecem no gráfico
D62: e que serão impressos.
C72: Todas as inclusões devem ser feitas na planilha TABELA DE DADOS.
C74: Os dados contidos nesta planilha são importados da Tabela de Dados.
C76: Para você visualizar todos os meses, clique no sinal de "+" no camo postrado na figura abaixo.
C93: Todos os meses serão mostrados em seguida.
C95: Note que o mês de fevereiro não está presente, mas já foram adicionados valores para ele na
C96: planilha Tabela de Dados.
C98: Para que os valores de um mês, no exemplo Fevereiro, seja mostrado, faça o seguinte:
C100: Depois que todos os meses estiverem amostra, clique na coluna correspondente ao mês que
C101: deseja mostrar, colocar no gráfico e imprimir no relatório.
C116: Observe que toda a coluna foi selecionada!
C118: Depois clique na divisória DADOS, e na opção DESAGRUPAR.
C142: Veja que a barra que existia em cima da coluna "E" sumiu. Ela foi desagrupada.
C166: Para esconder novamente as colunas agrupadas, clique no botão "-", que está próximo ao mês de
C167: Dezembro, como mostrado na figura abaixo.
C182: Com isso, a impressão do relatório já está pronta e os gráficos conterão apenas os dados dos meses que
C183: possuem informações.
C185: Dica: | D185: Para esconder um mês, basta mostrar todos, clicar na coluna correspondente ao mês que se
D186: deseja esconder, e depois, na divisória DADOS, clicar na opção AGRUPAR. Experimente!
C188: Veja os gráficos.
C229: Dica: | D229: Para colar os gráficos no Word e Power Point:
D231: 1- | E231: Clique no gráfico e copie (Ctrl+C).
D232: 2- | E232: Vá para o Word ou Power Point.
D233: 3- | E233: Utilise o Colar Especial (Ctrl+Alt+V)
D234: 4- | E234: Escolha a opção Bitmap
D236: Pronto! Seu gráfico está colado.
C238: Dica: | D238: Para ajustar o tamanho do gráfico sem alterar suas proporções, clique no gráfico, depois
D239: em uma das "bolinhas" que aparecem nos cantos do gráfico.
D241: Pressione a tecla "Shift" e a mantenha pressionada enquanto arrasta o canto do gráfico.
B250: Sucesso!
B254: Entre em contato: corelli@geraldcorelli.com

Sheet Tabela de dados
B5: Tabela para cálculo de indicadores de RH
B6: Ano
B7: 2010 | C7: FALSE
B9: Informação | D9: 2010-01-01 | E9: 2010-02-01 | F9: 2010-03-01 | G9: 2010-04-01 | H9: 2010-05-01 | I9: 2010-06-01 | J9: 2010-07-01 | K9: 2010-08-01 | L9: 2010-09-01 | M9: 2010-10-01 | N9: 2010-11-01 | O9: 2010-12-01
B10: Quant. de empregados | D10: 100 | E10: 105
B11: Dias do mês | D11: =IF(D10="","",COUNTIF(Calendário!$D$6:$D$371,MONTH(D9))) -> 31 | E11: =IF(E10="","",COUNTIF(Calendário!$D$6:$D$371,MONTH(E9))) -> 28 | F11: =IF(F10="","",COUNTIF(Calendário!$D$6:$D$371,MONTH(F9))) ->  | G11: =IF(G10="","",COUNTIF(Calendário!$D$6:$D$371,MONTH(G9))) ->  | H11: =IF(H10="","",COUNTIF(Calendário!$D$6:$D$371,MONTH(H9))) ->  | I11: =IF(I10="","",COUNTIF(Calendário!$D$6:$D$371,MONTH(I9))) ->  | J11: =IF(J10="","",COUNTIF(Calendário!$D$6:$D$371,MONTH(J9))) ->  | K11: =IF(K10="","",COUNTIF(Calendário!$D$6:$D$371,MONTH(K9))) ->  | L11: =IF(L10="","",COUNTIF(Calendário!$D$6:$D$371,MONTH(L9))) ->  | M11: =IF(M10="","",COUNTIF(Calendário!$D$6:$D$371,MONTH(M9))) ->  | N11: =IF(N10="","",COUNTIF(Calendário!$D$6:$D$371,MONTH(N9))) ->  | O11: =IF(O10="","",COUNTIF(Calendário!$D$6:$D$371,MONTH(O9))) -> 
B12: Feriados e DSR | D12: =IF(D10="","",IF('Tabela de dados'!$C$7=TRUE,COUNTIF(Calendário!$F$6:$F$371,CONCATENATE(MONTH(D9),1)),COUNTIF(Calendário!$F$6:$F$371,CONCATENATE(MONTH(D9),1))+COUNTIF(Calendário!$F$6:$F$371,CONCATENATE(MONTH(D9),7)))+COUNTIF(Calendário!$G$6:$G$371,MONTH(D9)&"feriado")) -> 12 | E12: =IF(E10="","",IF('Tabela de dados'!$C$7=TRUE,COUNTIF(Calendário!$F$6:$F$371,CONCATENATE(MONTH(E9),1)),COUNTIF(Calendário!$F$6:$F$371,CONCATENATE(MONTH(E9),1))+COUNTIF(Calendário!$F$6:$F$371,CONCATENATE(MONTH(E9),7)))+COUNTIF(Calendário!$G$6:$G$371,MONTH(E9)&"feriado")) -> 10 | F12: =IF(F10="","",IF('Tabela de dados'!$C$7=TRUE,COUNTIF(Calendário!$F$6:$F$371,CONCATENATE(MONTH(F9),1)),COUNTIF(Calendário!$F$6:$F$371,CONCATENATE(MONTH(F9),1))+COUNTIF(Calendário!$F$6:$F$371,CONCATENATE(MONTH(F9),7)))+COUNTIF(Calendário!$G$6:$G$371,MONTH(F9)&"feriado")) ->  | G12: =IF(G10="","",IF('Tabela de dados'!$C$7=TRUE,COUNTIF(Calendário!$F$6:$F$371,CONCATENATE(MONTH(G9),1)),COUNTIF(Calendário!$F$6:$F$371,CONCATENATE(MONTH(G9),1))+COUNTIF(Calendário!$F$6:$F$371,CONCATENATE(MONTH(G9),7)))+COUNTIF(Calendário!$G$6:$G$371,MONTH(G9)&"feriado")) ->  | H12: =IF(H10="","",IF('Tabela de dados'!$C$7=TRUE,COUNTIF(Calendário!$F$6:$F$371,CONCATENATE(MONTH(H9),1)),COUNTIF(Calendário!$F$6:$F$371,CONCATENATE(MONTH(H9),1))+COUNTIF(Calendário!$F$6:$F$371,CONCATENATE(MONTH(H9),7)))+COUNTIF(Calendário!$G$6:$G$371,MONTH(H9)&"feriado")) ->  | I12: =IF(I10="","",IF('Tabela de dados'!$C$7=TRUE,COUNTIF(Calendário!$F$6:$F$371,CONCATENATE(MONTH(I9),1)),COUNTIF(Calendário!$F$6:$F$371,CONCATENATE(MONTH(I9),1))+COUNTIF(Calendário!$F$6:$F$371,CONCATENATE(MONTH(I9),7)))+COUNTIF(Calendário!$G$6:$G$371,MONTH(I9)&"feriado")) ->  | J12: =IF(J10="","",IF('Tabela de dados'!$C$7=TRUE,COUNTIF(Calendário!$F$6:$F$371,CONCATENATE(MONTH(J9),1)),COUNTIF(Calendário!$F$6:$F$371,CONCATENATE(MONTH(J9),1))+COUNTIF(Calendário!$F$6:$F$371,CONCATENATE(MONTH(J9),7)))+COUNTIF(Calendário!$G$6:$G$371,MONTH(J9)&"feriado")) ->  | K12: =IF(K10="","",IF('Tabela de dados'!$C$7=TRUE,COUNTIF(Calendário!$F$6:$F$371,CONCATENATE(MONTH(K9),1)),COUNTIF(Calendário!$F$6:$F$371,CONCATENATE(MONTH(K9),1))+COUNTIF(Calendário!$F$6:$F$371,CONCATENATE(MONTH(K9),7)))+COUNTIF(Calendário!$G$6:$G$371,MONTH(K9)&"feriado")) ->  | L12: =IF(L10="","",IF('Tabela de dados'!$C$7=TRUE,COUNTIF(Calendário!$F$6:$F$371,CONCATENATE(MONTH(L9),1)),COUNTIF(Calendário!$F$6:$F$371,CONCATENATE(MONTH(L9),1))+COUNTIF(Calendário!$F$6:$F$371,CONCATENATE(MONTH(L9),7)))+COUNTIF(Calendário!$G$6:$G$371,MONTH(L9)&"feriado")) ->  | M12: =IF(M10="","",IF('Tabela de dados'!$C$7=TRUE,COUNTIF(Calendário!$F$6:$F$371,CONCATENATE(MONTH(M9),1)),COUNTIF(Calendário!$F$6:$F$371,CONCATENATE(MONTH(M9),1))+COUNTIF(Calendário!$F$6:$F$371,CONCATENATE(MONTH(M9),7)))+COUNTIF(Calendário!$G$6:$G$371,MONTH(M9)&"feriado")) ->  | N12: =IF(N10="","",IF('Tabela de dados'!$C$7=TRUE,COUNTIF(Calendário!$F$6:$F$371,CONCATENATE(MONTH(N9),1)),COUNTIF(Calendário!$F$6:$F$371,CONCATENATE(MONTH(N9),1))+COUNTIF(Calendário!$F$6:$F$371,CONCATENATE(MONTH(N9),7)))+COUNTIF(Calendário!$G$6:$G$371,MONTH(N9)&"feriado")) ->  | O12: =IF(O10="","",IF('Tabela de dados'!$C$7=TRUE,COUNTIF(Calendário!$F$6:$F$371,CONCATENATE(MONTH(O9),1)),COUNTIF(Calendário!$F$6:$F$371,CONCATENATE(MONTH(O9),1))+COUNTIF(Calendário!$F$6:$F$371,CONCATENATE(MONTH(O9),7)))+COUNTIF(Calendário!$G$6:$G$371,MONTH(O9)&"feriado")) -> 
B13: Dias de trabalho | D13: =IF(D10="","",D11-D12) -> 19 | E13: =IF(E10="","",E11-E12) -> 18 | F13: =IF(F10="","",F11-F12) ->  | G13: =IF(G10="","",G11-G12) ->  | H13: =IF(H10="","",H11-H12) ->  | I13: =IF(I10="","",I11-I12) ->  | J13: =IF(J10="","",J11-J12) ->  | K13: =IF(K10="","",K11-K12) ->  | L13: =IF(L10="","",L11-L12) ->  | M13: =IF(M10="","",M11-M12) ->  | N13: =IF(N10="","",N11-N12) ->  | O13: =IF(O10="","",O11-O12) -> 
B14: Dias de trab. x Emp. | D14: =IF(D13="","",D13*D10) -> 1900 | E14: =IF(E13="","",E13*E10) -> 1890 | F14: =IF(F13="","",F13*F10) ->  | G14: =IF(G13="","",G13*G10) ->  | H14: =IF(H13="","",H13*H10) ->  | I14: =IF(I13="","",I13*I10) ->  | J14: =IF(J13="","",J13*J10) ->  | K14: =IF(K13="","",K13*K10) ->  | L14: =IF(L13="","",L13*L10) ->  | M14: =IF(M13="","",M13*M10) ->  | N14: =IF(N13="","",N13*N10) ->  | O14: =IF(O13="","",O13*O10) -> 
B15: Quantidade de admissões | D15: 2 | E15: 1
B16: Quantidade total de faltas | D16: 100 | E16: 85
B17: Quantidade total de Rescisões | D17: 3 | E17: 1
B18: Quantidade de Dispensados | D18: 2 | E18: 1
B19: Quantidade de Pedidos de Demissão | D19: 1 | E19: 0
B20: Quant. de Rescisões com menos de um ano | D20: 2 | E20: 0
B22: Cortesia do site Corellis Page

Sheet Indicadores
B9: Indicadores | D9: 2010-01-01 | E9: 2010-02-01 | F9: 2010-03-01 | G9: 2010-04-01 | H9: 2010-05-01 | I9: 2010-06-01 | J9: 2010-07-01 | K9: 2010-08-01 | L9: 2010-09-01 | M9: 2010-10-01 | N9: 2010-11-01 | O9: 2010-12-01
B10: =ano -> 2010
C14: Indicador no mês | D14: =IF('Tabela de dados'!D$10="","",'Tabela de dados'!D16/'Tabela de dados'!D14) -> 0.05263157895 | E14: =IF('Tabela de dados'!E$10="","",'Tabela de dados'!E16/'Tabela de dados'!E14) -> 0.04497354497 | F14: =IF('Tabela de dados'!F$10="","",'Tabela de dados'!F16/'Tabela de dados'!F14) ->  | G14: =IF('Tabela de dados'!G$10="","",'Tabela de dados'!G16/'Tabela de dados'!G14) ->  | H14: =IF('Tabela de dados'!H$10="","",'Tabela de dados'!H16/'Tabela de dados'!H14) ->  | I14: =IF('Tabela de dados'!I$10="","",'Tabela de dados'!I16/'Tabela de dados'!I14) ->  | J14: =IF('Tabela de dados'!J$10="","",'Tabela de dados'!J16/'Tabela de dados'!J14) ->  | K14: =IF('Tabela de dados'!K$10="","",'Tabela de dados'!K16/'Tabela de dados'!K14) ->  | L14: =IF('Tabela de dados'!L$10="","",'Tabela de dados'!L16/'Tabela de dados'!L14) ->  | M14: =IF('Tabela de dados'!M$10="","",'Tabela de dados'!M16/'Tabela de dados'!M14) ->  | N14: =IF('Tabela de dados'!N$10="","",'Tabela de dados'!N16/'Tabela de dados'!N14) ->  | O14: =IF('Tabela de dados'!O$10="","",'Tabela de dados'!O16/'Tabela de dados'!O14) -> 
C15: Média no ano | D15: =IF('Tabela de dados'!D$10="","",AVERAGE($D14,D14)) -> 0.05263157895 | E15: =IF('Tabela de dados'!E$10="","",AVERAGE($D14,E14)) -> 0.04880256196 | F15: =IF('Tabela de dados'!F$10="","",AVERAGE($D14,F14)) ->  | G15: =IF('Tabela de dados'!G$10="","",AVERAGE($D14,G14)) ->  | H15: =IF('Tabela de dados'!H$10="","",AVERAGE($D14,H14)) ->  | I15: =IF('Tabela de dados'!I$10="","",AVERAGE($D14,I14)) ->  | J15: =IF('Tabela de dados'!J$10="","",AVERAGE($D14,J14)) ->  | K15: =IF('Tabela de dados'!K$10="","",AVERAGE($D14,K14)) ->  | L15: =IF('Tabela de dados'!L$10="","",AVERAGE($D14,L14)) ->  | M15: =IF('Tabela de dados'!M$10="","",AVERAGE($D14,M14)) ->  | N15: =IF('Tabela de dados'!N$10="","",AVERAGE($D14,N14)) ->  | O15: =IF('Tabela de dados'!O$10="","",AVERAGE($D14,O14)) -> 
C19: Indicador no mês | D19: =IF('Tabela de dados'!D$10="","",(('Tabela de dados'!D17+'Tabela de dados'!D15)/2)/'Tabela de dados'!D$10) -> 0.025 | E19: =IF('Tabela de dados'!E$10="","",(('Tabela de dados'!E17+'Tabela de dados'!E15)/2)/'Tabela de dados'!E$10) -> 0.009523809524 | F19: =IF('Tabela de dados'!F$10="","",(('Tabela de dados'!F17+'Tabela de dados'!F15)/2)/'Tabela de dados'!F$10) ->  | G19: =IF('Tabela de dados'!G$10="","",(('Tabela de dados'!G17+'Tabela de dados'!G15)/2)/'Tabela de dados'!G$10) ->  | H19: =IF('Tabela de dados'!H$10="","",(('Tabela de dados'!H17+'Tabela de dados'!H15)/2)/'Tabela de dados'!H$10) ->  | I19: =IF('Tabela de dados'!I$10="","",(('Tabela de dados'!I17+'Tabela de dados'!I15)/2)/'Tabela de dados'!I$10) ->  | J19: =IF('Tabela de dados'!J$10="","",(('Tabela de dados'!J17+'Tabela de dados'!J15)/2)/'Tabela de dados'!J$10) ->  | K19: =IF('Tabela de dados'!K$10="","",(('Tabela de dados'!K17+'Tabela de dados'!K15)/2)/'Tabela de dados'!K$10) ->  | L19: =IF('Tabela de dados'!L$10="","",(('Tabela de dados'!L17+'Tabela de dados'!L15)/2)/'Tabela de dados'!L$10) ->  | M19: =IF('Tabela de dados'!M$10="","",(('Tabela de dados'!M17+'Tabela de dados'!M15)/2)/'Tabela de dados'!M$10) ->  | N19: =IF('Tabela de dados'!N$10="","",(('Tabela de dados'!N17+'Tabela de dados'!N15)/2)/'Tabela de dados'!N$10) ->  | O19: =IF('Tabela de dados'!O$10="","",(('Tabela de dados'!O17+'Tabela de dados'!O15)/2)/'Tabela de dados'!O$10) -> 
C20: Média no ano | D20: =IF('Tabela de dados'!D$10="","",AVERAGE($D19,D19)) -> 0.025 | E20: =IF('Tabela de dados'!E$10="","",AVERAGE($D19,E19)) -> 0.01726190476 | F20: =IF('Tabela de dados'!F$10="","",AVERAGE($D19,F19)) ->  | G20: =IF('Tabela de dados'!G$10="","",AVERAGE($D19,G19)) ->  | H20: =IF('Tabela de dados'!H$10="","",AVERAGE($D19,H19)) ->  | I20: =IF('Tabela de dados'!I$10="","",AVERAGE($D19,I19)) ->  | J20: =IF('Tabela de dados'!J$10="","",AVERAGE($D19,J19)) ->  | K20: =IF('Tabela de dados'!K$10="","",AVERAGE($D19,K19)) ->  | L20: =IF('Tabela de dados'!L$10="","",AVERAGE($D19,L19)) ->  | M20: =IF('Tabela de dados'!M$10="","",AVERAGE($D19,M19)) ->  | N20: =IF('Tabela de dados'!N$10="","",AVERAGE($D19,N19)) ->  | O20: =IF('Tabela de dados'!O$10="","",AVERAGE($D19,O19)) -> 
C24: Indicador no mês | D24: =IF('Tabela de dados'!D$10="","",'Tabela de dados'!D17/'Tabela de dados'!D10) -> 0.03 | E24: =IF('Tabela de dados'!E$10="","",'Tabela de dados'!E17/'Tabela de dados'!E10) -> 0.009523809524 | F24: =IF('Tabela de dados'!F$10="","",'Tabela de dados'!F17/'Tabela de dados'!F10) ->  | G24: =IF('Tabela de dados'!G$10="","",'Tabela de dados'!G17/'Tabela de dados'!G10) ->  | H24: =IF('Tabela de dados'!H$10="","",'Tabela de dados'!H17/'Tabela de dados'!H10) ->  | I24: =IF('Tabela de dados'!I$10="","",'Tabela de dados'!I17/'Tabela de dados'!I10) ->  | J24: =IF('Tabela de dados'!J$10="","",'Tabela de dados'!J17/'Tabela de dados'!J10) ->  | K24: =IF('Tabela de dados'!K$10="","",'Tabela de dados'!K17/'Tabela de dados'!K10) ->  | L24: =IF('Tabela de dados'!L$10="","",'Tabela de dados'!L17/'Tabela de dados'!L10) ->  | M24: =IF('Tabela de dados'!M$10="","",'Tabela de dados'!M17/'Tabela de dados'!M10) ->  | N24: =IF('Tabela de dados'!N$10="","",'Tabela de dados'!N17/'Tabela de dados'!N10) ->  | O24: =IF('Tabela de dados'!O$10="","",'Tabela de dados'!O17/'Tabela de dados'!O10) -> 
C25: Média no ano | D25: =IF('Tabela de dados'!D$10="","",AVERAGE($D24,D24)) -> 0.03 | E25: =IF('Tabela de dados'!E$10="","",AVERAGE($D24,E24)) -> 0.01976190476 | F25: =IF('Tabela de dados'!F$10="","",AVERAGE($D24,F24)) ->  | G25: =IF('Tabela de dados'!G$10="","",AVERAGE($D24,G24)) ->  | H25: =IF('Tabela de dados'!H$10="","",AVERAGE($D24,H24)) ->  | I25: =IF('Tabela de dados'!I$10="","",AVERAGE($D24,I24)) ->  | J25: =IF('Tabela de dados'!J$10="","",AVERAGE($D24,J24)) ->  | K25: =IF('Tabela de dados'!K$10="","",AVERAGE($D24,K24)) ->  | L25: =IF('Tabela de dados'!L$10="","",AVERAGE($D24,L24)) ->  | M25: =IF('Tabela de dados'!M$10="","",AVERAGE($D24,M24)) ->  | N25: =IF('Tabela de dados'!N$10="","",AVERAGE($D24,N24)) ->  | O25: =IF('Tabela de dados'!O$10="","",AVERAGE($D24,O24)) -> 
C29: Indicador no mês | D29: =IF('Tabela de dados'!D$10="","",'Tabela de dados'!D18/'Tabela de dados'!D$10) -> 0.02 | E29: =IF('Tabela de dados'!E$10="","",'Tabela de dados'!E18/'Tabela de dados'!E$10) -> 0.009523809524 | F29: =IF('Tabela de dados'!F$10="","",'Tabela de dados'!F18/'Tabela de dados'!F$10) ->  | G29: =IF('Tabela de dados'!G$10="","",'Tabela de dados'!G18/'Tabela de dados'!G$10) ->  | H29: =IF('Tabela de dados'!H$10="","",'Tabela de dados'!H18/'Tabela de dados'!H$10) ->  | I29: =IF('Tabela de dados'!I$10="","",'Tabela de dados'!I18/'Tabela de dados'!I$10) ->  | J29: =IF('Tabela de dados'!J$10="","",'Tabela de dados'!J18/'Tabela de dados'!J$10) ->  | K29: =IF('Tabela de dados'!K$10="","",'Tabela de dados'!K18/'Tabela de dados'!K$10) ->  | L29: =IF('Tabela de dados'!L$10="","",'Tabela de dados'!L18/'Tabela de dados'!L$10) ->  | M29: =IF('Tabela de dados'!M$10="","",'Tabela de dados'!M18/'Tabela de dados'!M$10) ->  | N29: =IF('Tabela de dados'!N$10="","",'Tabela de dados'!N18/'Tabela de dados'!N$10) ->  | O29: =IF('Tabela de dados'!O$10="","",'Tabela de dados'!O18/'Tabela de dados'!O$10) -> 
C30: Média no ano | D30: =IF('Tabela de dados'!D$10="","",AVERAGE($D29,D29)) -> 0.02 | E30: =IF('Tabela de dados'!E$10="","",AVERAGE($D29,E29)) -> 0.01476190476 | F30: =IF('Tabela de dados'!F$10="","",AVERAGE($D29,F29)) ->  | G30: =IF('Tabela de dados'!G$10="","",AVERAGE($D29,G29)) ->  | H30: =IF('Tabela de dados'!H$10="","",AVERAGE($D29,H29)) ->  | I30: =IF('Tabela de dados'!I$10="","",AVERAGE($D29,I29)) ->  | J30: =IF('Tabela de dados'!J$10="","",AVERAGE($D29,J29)) ->  | K30: =IF('Tabela de dados'!K$10="","",AVERAGE($D29,K29)) ->  | L30: =IF('Tabela de dados'!L$10="","",AVERAGE($D29,L29)) ->  | M30: =IF('Tabela de dados'!M$10="","",AVERAGE($D29,M29)) ->  | N30: =IF('Tabela de dados'!N$10="","",AVERAGE($D29,N29)) ->  | O30: =IF('Tabela de dados'!O$10="","",AVERAGE($D29,O29)) -> 
C31: Relação com Turnover total | D31: =IF('Tabela de dados'!D$10="","",D29/D$19) -> 0.8 | E31: =IF('Tabela de dados'!E$10="","",IF(E$19=0,0,E29/E$19)) -> 1 | F31: =IF('Tabela de dados'!F$10="","",IF(F$19=0,0,F29/F$19)) ->  | G31: =IF('Tabela de dados'!G$10="","",IF(G$19=0,0,G29/G$19)) ->  | H31: =IF('Tabela de dados'!H$10="","",IF(H$19=0,0,H29/H$19)) ->  | I31: =IF('Tabela de dados'!I$10="","",IF(I$19=0,0,I29/I$19)) ->  | J31: =IF('Tabela de dados'!J$10="","",IF(J$19=0,0,J29/J$19)) ->  | K31: =IF('Tabela de dados'!K$10="","",IF(K$19=0,0,K29/K$19)) ->  | L31: =IF('Tabela de dados'!L$10="","",IF(L$19=0,0,L29/L$19)) ->  | M31: =IF('Tabela de dados'!M$10="","",IF(M$19=0,0,M29/M$19)) ->  | N31: =IF('Tabela de dados'!N$10="","",IF(N$19=0,0,N29/N$19)) ->  | O31: =IF('Tabela de dados'!O$10="","",IF(O$19=0,0,O29/O$19)) -> 
C35: Indicador no mês | D35: =IF('Tabela de dados'!D$10="","",'Tabela de dados'!D19/'Tabela de dados'!D$10) -> 0.01 | E35: =IF('Tabela de dados'!E$10="","",'Tabela de dados'!E19/'Tabela de dados'!E$10) -> 0 | F35: =IF('Tabela de dados'!F$10="","",'Tabela de dados'!F19/'Tabela de dados'!F$10) ->  | G35: =IF('Tabela de dados'!G$10="","",'Tabela de dados'!G19/'Tabela de dados'!G$10) ->  | H35: =IF('Tabela de dados'!H$10="","",'Tabela de dados'!H19/'Tabela de dados'!H$10) ->  | I35: =IF('Tabela de dados'!I$10="","",'Tabela de dados'!I19/'Tabela de dados'!I$10) ->  | J35: =IF('Tabela de dados'!J$10="","",'Tabela de dados'!J19/'Tabela de dados'!J$10) ->  | K35: =IF('Tabela de dados'!K$10="","",'Tabela de dados'!K19/'Tabela de dados'!K$10) ->  | L35: =IF('Tabela de dados'!L$10="","",'Tabela de dados'!L19/'Tabela de dados'!L$10) ->  | M35: =IF('Tabela de dados'!M$10="","",'Tabela de dados'!M19/'Tabela de dados'!M$10) ->  | N35: =IF('Tabela de dados'!N$10="","",'Tabela de dados'!N19/'Tabela de dados'!N$10) ->  | O35: =IF('Tabela de dados'!O$10="","",'Tabela de dados'!O19/'Tabela de dados'!O$10) -> 
C36: Média no ano | D36: =IF('Tabela de dados'!D$10="","",AVERAGE($D35,D35)) -> 0.01 | E36: =IF('Tabela de dados'!E$10="","",AVERAGE($D35,E35)) -> 0.005 | F36: =IF('Tabela de dados'!F$10="","",AVERAGE($D35,F35)) ->  | G36: =IF('Tabela de dados'!G$10="","",AVERAGE($D35,G35)) ->  | H36: =IF('Tabela de dados'!H$10="","",AVERAGE($D35,H35)) ->  | I36: =IF('Tabela de dados'!I$10="","",AVERAGE($D35,I35)) ->  | J36: =IF('Tabela de dados'!J$10="","",AVERAGE($D35,J35)) ->  | K36: =IF('Tabela de dados'!K$10="","",AVERAGE($D35,K35)) ->  | L36: =IF('Tabela de dados'!L$10="","",AVERAGE($D35,L35)) ->  | M36: =IF('Tabela de dados'!M$10="","",AVERAGE($D35,M35)) ->  | N36: =IF('Tabela de dados'!N$10="","",AVERAGE($D35,N35)) ->  | O36: =IF('Tabela de dados'!O$10="","",AVERAGE($D35,O35)) -> 
C37: Relação com Turnover total | D37: =IF('Tabela de dados'!D$10="","",D35/D$19) -> 0.4 | E37: =IF('Tabela de dados'!E$10="","",IF(E$19=0,0,E35/E$19)) -> 0 | F37: =IF('Tabela de dados'!F$10="","",IF(F$19=0,0,F35/F$19)) ->  | G37: =IF('Tabela de dados'!G$10="","",IF(G$19=0,0,G35/G$19)) ->  | H37: =IF('Tabela de dados'!H$10="","",IF(H$19=0,0,H35/H$19)) ->  | I37: =IF('Tabela de dados'!I$10="","",IF(I$19=0,0,I35/I$19)) ->  | J37: =IF('Tabela de dados'!J$10="","",IF(J$19=0,0,J35/J$19)) ->  | K37: =IF('Tabela de dados'!K$10="","",IF(K$19=0,0,K35/K$19)) ->  | L37: =IF('Tabela de dados'!L$10="","",IF(L$19=0,0,L35/L$19)) ->  | M37: =IF('Tabela de dados'!M$10="","",IF(M$19=0,0,M35/M$19)) ->  | N37: =IF('Tabela de dados'!N$10="","",IF(N$19=0,0,N35/N$19)) ->  | O37: =IF('Tabela de dados'!O$10="","",IF(O$19=0,0,O35/O$19)) -> 
C41: Indicador no mês | D41: =IF('Tabela de dados'!D$10="","",'Tabela de dados'!D20/'Tabela de dados'!D$10) -> 0.02 | E41: =IF('Tabela de dados'!E$10="","",'Tabela de dados'!E20/'Tabela de dados'!E$10) -> 0 | F41: =IF('Tabela de dados'!F$10="","",'Tabela de dados'!F20/'Tabela de dados'!F$10) ->  | G41: =IF('Tabela de dados'!G$10="","",'Tabela de dados'!G20/'Tabela de dados'!G$10) ->  | H41: =IF('Tabela de dados'!H$10="","",'Tabela de dados'!H20/'Tabela de dados'!H$10) ->  | I41: =IF('Tabela de dados'!I$10="","",'Tabela de dados'!I20/'Tabela de dados'!I$10) ->  | J41: =IF('Tabela de dados'!J$10="","",'Tabela de dados'!J20/'Tabela de dados'!J$10) ->  | K41: =IF('Tabela de dados'!K$10="","",'Tabela de dados'!K20/'Tabela de dados'!K$10) ->  | L41: =IF('Tabela de dados'!L$10="","",'Tabela de dados'!L20/'Tabela de dados'!L$10) ->  | M41: =IF('Tabela de dados'!M$10="","",'Tabela de dados'!M20/'Tabela de dados'!M$10) ->  | N41: =IF('Tabela de dados'!N$10="","",'Tabela de dados'!N20/'Tabela de dados'!N$10) ->  | O41: =IF('Tabela de dados'!O$10="","",'Tabela de dados'!O20/'Tabela de dados'!O$10) -> 
C42: Média no ano | D42: =IF('Tabela de dados'!D$10="","",AVERAGE($D41,D41)) -> 0.02 | E42: =IF('Tabela de dados'!E$10="","",AVERAGE($D41,E41)) -> 0.01 | F42: =IF('Tabela de dados'!F$10="","",AVERAGE($D41,F41)) ->  | G42: =IF('Tabela de dados'!G$10="","",AVERAGE($D41,G41)) ->  | H42: =IF('Tabela de dados'!H$10="","",AVERAGE($D41,H41)) ->  | I42: =IF('Tabela de dados'!I$10="","",AVERAGE($D41,I41)) ->  | J42: =IF('Tabela de dados'!J$10="","",AVERAGE($D41,J41)) ->  | K42: =IF('Tabela de dados'!K$10="","",AVERAGE($D41,K41)) ->  | L42: =IF('Tabela de dados'!L$10="","",AVERAGE($D41,L41)) ->  | M42: =IF('Tabela de dados'!M$10="","",AVERAGE($D41,M41)) ->  | N42: =IF('Tabela de dados'!N$10="","",AVERAGE($D41,N41)) ->  | O42: =IF('Tabela de dados'!O$10="","",AVERAGE($D41,O41)) -> 
C43: Relação com Turnover total | D43: =IF('Tabela de dados'!D$10="","",D41/D$19) -> 0.8 | E43: =IF('Tabela de dados'!E$10="","",IF(E$19=0,0,E41/E$19)) -> 0 | F43: =IF('Tabela de dados'!F$10="","",IF(F$19=0,0,F41/F$19)) ->  | G43: =IF('Tabela de dados'!G$10="","",IF(G$19=0,0,G41/G$19)) ->  | H43: =IF('Tabela de dados'!H$10="","",IF(H$19=0,0,H41/H$19)) ->  | I43: =IF('Tabela de dados'!I$10="","",IF(I$19=0,0,I41/I$19)) ->  | J43: =IF('Tabela de dados'!J$10="","",IF(J$19=0,0,J41/J$19)) ->  | K43: =IF('Tabela de dados'!K$10="","",IF(K$19=0,0,K41/K$19)) ->  | L43: =IF('Tabela de dados'!L$10="","",IF(L$19=0,0,L41/L$19)) ->  | M43: =IF('Tabela de dados'!M$10="","",IF(M$19=0,0,M41/M$19)) ->  | N43: =IF('Tabela de dados'!N$10="","",IF(N$19=0,0,N41/N$19)) ->  | O43: =IF('Tabela de dados'!O$10="","",IF(O$19=0,0,O41/O$19)) -> 
B44: Cortesia do site Corellis Page

Sheet Gráficos
B32: Rescisões | E32: =Indicadores!F19 ->  | F32: =Indicadores!G19 ->  | G32: =Indicadores!H19 ->  | H32: =Indicadores!I19 ->  | I32: =Indicadores!J19 ->  | J32: =Indicadores!K19 ->  | K32: =Indicadores!L19 ->  | L32: =Indicadores!M19 ->  | M32: =Indicadores!N19 ->  | N32: =Indicadores!O19 -> 
B33: Demitidos | E33: =Indicadores!F29 ->  | F33: =Indicadores!G29 ->  | G33: =Indicadores!H29 ->  | H33: =Indicadores!I29 ->  | I33: =Indicadores!J29 ->  | J33: =Indicadores!K29 ->  | K33: =Indicadores!L29 ->  | L33: =Indicadores!M29 ->  | M33: =Indicadores!N29 ->  | N33: =Indicadores!O29 -> 
B34: Pedidos | E34: =Indicadores!F35 ->  | F34: =Indicadores!G35 ->  | G34: =Indicadores!H35 ->  | H34: =Indicadores!I35 ->  | I34: =Indicadores!J35 ->  | J34: =Indicadores!K35 ->  | K34: =Indicadores!L35 ->  | L34: =Indicadores!M35 ->  | M34: =Indicadores!N35 ->  | N34: =Indicadores!O35 -> 
B35: Menos de 1 ano | E35: =Indicadores!F41 ->  | F35: =Indicadores!G41 ->  | G35: =Indicadores!H41 ->  | H35: =Indicadores!I41 ->  | I35: =Indicadores!J41 ->  | J35: =Indicadores!K41 ->  | K35: =Indicadores!L41 ->  | L35: =Indicadores!M41 ->  | M35: =Indicadores!N41 ->  | N35: =Indicadores!O41 -> 
B36: Média Turnover | E36: =Indicadores!F20 ->  | F36: =Indicadores!G20 ->  | G36: =Indicadores!H20 ->  | H36: =Indicadores!I20 ->  | I36: =Indicadores!J20 ->  | J36: =Indicadores!K20 ->  | K36: =Indicadores!L20 ->  | L36: =Indicadores!M20 ->  | M36: =Indicadores!N20 ->  | N36: =Indicadores!O20 -> 

Sheet Calendário
B4: Semana do ano | C4: Data | D4: Flag mês | E4: Flag DSR | F4: Flag 1 | G4: Flag 2 | H4: Status da data | I4: Início e fim da semana | J4: flag | L4: FERIADOS | R4: Dias da semana | V4: Algoritmo de Meeus/Jones/Butcher
L5: Dia | M5: Mês | O5: Descrição
B6: =WEEKNUM(C6) -> 1 | C6: =DATE(ano,1,1) -> 2010-01-01 | D6: =MONTH(C6) -> 1 | E6: =WEEKDAY(C6) -> 6 | F6: =D6&E6 -> 16 | G6: =IF(AND(OR(E6=1,E6=7),H6="feriado"),"",CONCATENATE(D6,H6)) -> 1Feriado | H6: =IF(ISNA(VLOOKUP(C6,feriados,1,FALSE)),VLOOKUP(WEEKDAY(C6,1),$R$6:$S$12,2,TRUE),"Feriado") -> Feriado | I6: =TEXT(DAY(C6),"dd")&"-"&TEXT(DAY(C6+7-E6),"dd") -> 01-02 | J6: =CONCATENATE(B6,H6) -> 1Feriado | L6: 1 | M6: 1 | N6: =IF(L6="","",DATE(ano,M6,L6)) -> 2010-01-01 | O6: Confraternização Universal | R6: 1 | S6: Domingo
B7: 1 | C7: =+C6+1 -> 2010-01-02 | D7: 1 | E7: 7 | F7: =D7&E7 -> 17 | G7: =IF(AND(OR(E7=1,E7=7),H7="feriado"),"",CONCATENATE(D7,H7)) -> 1Sábado | H7: Sábado | I7: =IF(E7=1,TEXT(DAY(C7),"dd")&"-"&TEXT(DAY(C7+7-E7),"dd"),"") ->  | J7: 1Sábado | L7: 25 | M7: 1 | N7: =IF(L7="","",DATE(ano,M7,L7)) -> 2010-01-25 | O7: Aniversário de São Paulo (SP) | R7: 2 | S7: Segunda-feira | V7: Outro algoritmo que pode ser usado é o de Meeus/Jones/Butcher (para o calendário gregoriano), exposto por Jean Meeus em Astronomical Algorithms (1991):
B8: 2 | C8: 2010-01-03 | D8: 1 | E8: 1 | F8: 11 | G8: 1Domingo | H8: Domingo | I8: 03-09 | J8: 2Domingo | N8: =Páscoa-47 -> 2010-02-16 | O8: Terça de Carnaval | R8: 3 | S8: Terça-feira
B9: 2 | C9: 2010-01-04 | D9: 1 | E9: 2 | F9: 12 | G9: 1Segunda-feira | H9: Segunda-feira | J9: 2Segunda-feira | N9: =Páscoa-46 -> 2010-02-17 | O9: Quarta feira de Cinzas | R9: 4 | S9: Quarta-feira | V9: O sinal "\" refere-se à divisão por inteiro: 7\3 é igual a 2, não a 2,333...
B10: 2 | C10: 2010-01-05 | D10: 1 | E10: 3 | F10: 13 | G10: 1Terça-feira | H10: Terça-feira | J10: 2Terça-feira | N10: =Páscoa -> 2010-04-04 | O10: Páscoa | R10: 5 | S10: Quinta-feira
B11: 2 | C11: 2010-01-06 | D11: 1 | E11: 4 | F11: 14 | G11: 1Quarta-feira | H11: Quarta-feira | J11: 2Quarta-feira | L11: 21 | M11: 4 | N11: =IF(L11="","",DATE(ano,M11,L11)) -> 2010-04-21 | O11: Tiradentes | R11: 6 | S11: Sexta-feira | V11: a = MOD(ANO;19) | W11: =MOD(ano,19) -> 15
B12: 2 | C12: 2010-01-07 | D12: 1 | E12: 5 | F12: 15 | G12: 1Quinta-feira | H12: Quinta-feira | J12: 2Quinta-feira | L12: 1 | M12: 5 | N12: 2010-05-01 | O12: Dia do Trabalho | R12: 7 | S12: Sábado
B13: 2 | C13: 2010-01-08 | D13: 1 | E13: 6 | F13: 16 | G13: 1Sexta-feira | H13: Sexta-feira | J13: 2Sexta-feira | L13: 7 | M13: 9 | N13: 2010-09-07 | O13: Proclamação da Independência do Brasil | V13: b = ANO \ 100 | W13: =INT(ano/100) -> 20
B14: 2 | C14: 2010-01-09 | D14: 1 | E14: 7 | F14: 17 | G14: 1Sábado | H14: Sábado | J14: 2Sábado | L14: 2 | M14: 11 | N14: 2010-11-02 | O14: Finados
B15: 3 | C15: 2010-01-10 | D15: 1 | E15: 1 | F15: 11 | G15: 1Domingo | H15: Domingo | I15: 10-16 | J15: 3Domingo | L15: 15 | M15: 11 | N15: 2010-11-15 | O15: Proclamação da República | V15: c = MOD(ANO;100) | W15: =MOD(ano,100) -> 10
B16: 3 | C16: 2010-01-11 | D16: 1 | E16: 2 | F16: 12 | G16: 1Segunda-feira | H16: Segunda-feira | J16: 3Segunda-feira | L16: 20 | M16: 11 | N16: 2010-11-20 | O16: Dia da Consciência Negra (SP)
B17: 3 | C17: 2010-01-12 | D17: 1 | E17: 3 | F17: 13 | G17: 1Terça-feira | H17: Terça-feira | J17: 3Terça-feira | L17: 25 | M17: 12 | N17: 2010-12-25 | O17: Natal | V17: d = b \ 4 | W17: =INT(W13/4) -> 5
B18: 3 | C18: 2010-01-13 | D18: 1 | E18: 4 | F18: 14 | G18: 1Quarta-feira | H18: Quarta-feira | J18: 3Quarta-feira
B19: 3 | C19: 2010-01-14 | D19: 1 | E19: 5 | F19: 15 | G19: 1Quinta-feira | H19: Quinta-feira | J19: 3Quinta-feira | V19: e = MOD(b;4) | W19: =MOD(W13,4) -> 0
B20: 3 | C20: 2010-01-15 | D20: 1 | E20: 6 | F20: 16 | G20: 1Sexta-feira | H20: Sexta-feira | J20: 3Sexta-feira
B21: 3 | C21: 2010-01-16 | D21: 1 | E21: 7 | F21: 17 | G21: 1Sábado | H21: Sábado | J21: 3Sábado | V21: f = (b + 8) \ 25 | W21: =INT((W13+8)/25) -> 1
B22: 4 | C22: 2010-01-17 | D22: 1 | E22: 1 | F22: 11 | G22: 1Domingo | H22: Domingo | I22: 17-23 | J22: 4Domingo
B23: 4 | C23: 2010-01-18 | D23: 1 | E23: 2 | F23: 12 | G23: 1Segunda-feira | H23: Segunda-feira | J23: 4Segunda-feira | V23: g = (b - f + 1) \ 3 | W23: =INT((W13-W21)/3) -> 6
B24: 4 | C24: 2010-01-19 | D24: 1 | E24: 3 | F24: 13 | G24: 1Terça-feira | H24: Terça-feira | J24: 4Terça-feira
B25: 4 | C25: 2010-01-20 | D25: 1 | E25: 4 | F25: 14 | G25: 1Quarta-feira | H25: Quarta-feira | J25: 4Quarta-feira | N25: =IF(L25="","",DATE(ano,M25,L25)) ->  | V25: h = MOD((19 × a + b - d - g + 15);30) | W25: =MOD((19*W11+(W13-W17-W23+15)),30) -> 9
B26: 4 | C26: 2010-01-21 | D26: 1 | E26: 5 | F26: 15 | G26: 1Quinta-feira | H26: Quinta-feira | J26: 4Quinta-feira
B27: 4 | C27: 2010-01-22 | D27: 1 | E27: 6 | F27: 16 | G27: 1Sexta-feira | H27: Sexta-feira | J27: 4Sexta-feira | V27: i = c \ 4 | W27: =INT(W15/4) -> 2
B28: 4 | C28: 2010-01-23 | D28: 1 | E28: 7 | F28: 17 | G28: 1Sábado | H28: Sábado | J28: 4Sábado
B29: 5 | C29: 2010-01-24 | D29: 1 | E29: 1 | F29: 11 | G29: 1Domingo | H29: Domingo | I29: 24-30 | J29: 5Domingo | V29: k = MOD(c;4) | W29: =MOD(W15,4) -> 2
B30: 5 | C30: 2010-01-25 | D30: 1 | E30: 2 | F30: 12 | G30: 1Feriado | H30: Feriado | J30: 5Feriado
B31: 5 | C31: 2010-01-26 | D31: 1 | E31: 3 | F31: 13 | G31: 1Terça-feira | H31: Terça-feira | J31: 5Terça-feira | V31: L = MOD((32 + 2 × e + 2 × i - h - k);7) | W31: =MOD((32+(2*W19)+(2*W27)-W25-W29),7) -> 4
B32: 5 | C32: 2010-01-27 | D32: 1 | E32: 4 | F32: 14 | G32: 1Quarta-feira | H32: Quarta-feira | J32: 5Quarta-feira
B33: 5 | C33: 2010-01-28 | D33: 1 | E33: 5 | F33: 15 | G33: 1Quinta-feira | H33: Quinta-feira | J33: 5Quinta-feira | V33: m = (a + 11 × h + 22 × L) \ 451 | W33: =INT((W11+11*W25+22*W31)/451) -> 0
B34: 5 | C34: 2010-01-29 | D34: 1 | E34: 6 | F34: 16 | G34: 1Sexta-feira | H34: Sexta-feira | J34: 5Sexta-feira
B35: 5 | C35: 2010-01-30 | D35: 1 | E35: 7 | F35: 17 | G35: 1Sábado | H35: Sábado | J35: 5Sábado | V35: MÊS = (h + L - 7 × m + 114) \ 31 | W35: =INT((W25+W31-7*W33+114)/31) -> 4
B36: 6 | C36: 2010-01-31 | D36: 1 | E36: 1 | F36: 11 | G36: 1Domingo | H36: Domingo | I36: 31-06 | J36: 6Domingo
B37: 6 | C37: 2010-02-01 | D37: 2 | E37: 2 | F37: 22 | G37: 2Segunda-feira | H37: Segunda-feira | J37: 6Segunda-feira | V37: DIA = MOD((h + L - 7 × m + 114);31) + 1 | W37: =MOD((W25+W31-7*W33+114),31)+1 -> 4
B38: 6 | C38: 2010-02-02 | D38: 2 | E38: 3 | F38: 23 | G38: 2Terça-feira | H38: Terça-feira | J38: 6Terça-feira
B39: 6 | C39: 2010-02-03 | D39: 2 | E39: 4 | F39: 24 | G39: 2Quarta-feira | H39: Quarta-feira | J39: 6Quarta-feira | V39: Páscoa | W39: =DATE(ano,W35,W37) -> 2010-04-04
B40: 6 | C40: 2010-02-04 | D40: 2 | E40: 5 | F40: 25 | G40: 2Quinta-feira | H40: Quinta-feira | J40: 6Quinta-feira
B41: 6 | C41: 2010-02-05 | D41: 2 | E41: 6 | F41: 26 | G41: 2Sexta-feira | H41: Sexta-feira | J41: 6Sexta-feira
B42: 6 | C42: 2010-02-06 | D42: 2 | E42: 7 | F42: 27 | G42: 2Sábado | H42: Sábado | J42: 6Sábado
B43: 7 | C43: 2010-02-07 | D43: 2 | E43: 1 | F43: 21 | G43: 2Domingo | H43: Domingo | I43: 07-13 | J43: 7Domingo
B44: 7 | C44: 2010-02-08 | D44: 2 | E44: 2 | F44: 22 | G44: 2Segunda-feira | H44: Segunda-feira | J44: 7Segunda-feira
B45: 7 | C45: 2010-02-09 | D45: 2 | E45: 3 | F45: 23 | G45: 2Terça-feira | H45: Terça-feira | J45: 7Terça-feira
B46: 7 | C46: 2010-02-10 | D46: 2 | E46: 4 | F46: 24 | G46: 2Quarta-feira | H46: Quarta-feira | J46: 7Quarta-feira
B47: 7 | C47: 2010-02-11 | D47: 2 | E47: 5 | F47: 25 | G47: 2Quinta-feira | H47: Quinta-feira | J47: 7Quinta-feira
B48: 7 | C48: 2010-02-12 | D48: 2 | E48: 6 | F48: 26 | G48: 2Sexta-feira | H48: Sexta-feira | J48: 7Sexta-feira
B49: 7 | C49: 2010-02-13 | D49: 2 | E49: 7 | F49: 27 | G49: 2Sábado | H49: Sábado | J49: 7Sábado
B50: 8 | C50: 2010-02-14 | D50: 2 | E50: 1 | F50: 21 | G50: 2Domingo | H50: Domingo | I50: 14-20 | J50: 8Domingo
B51: 8 | C51: 2010-02-15 | D51: 2 | E51: 2 | F51: 22 | G51: 2Segunda-feira | H51: Segunda-feira | J51: 8Segunda-feira
B52: 8 | C52: 2010-02-16 | D52: 2 | E52: 3 | F52: 23 | G52: 2Feriado | H52: Feriado | J52: 8Feriado
B53: 8 | C53: 2010-02-17 | D53: 2 | E53: 4 | F53: 24 | G53: 2Feriado | H53: Feriado | J53: 8Feriado
B54: 8 | C54: 2010-02-18 | D54: 2 | E54: 5 | F54: 25 | G54: 2Quinta-feira | H54: Quinta-feira | J54: 8Quinta-feira
B55: 8 | C55: 2010-02-19 | D55: 2 | E55: 6 | F55: 26 | G55: 2Sexta-feira | H55: Sexta-feira | J55: 8Sexta-feira
B56: 8 | C56: 2010-02-20 | D56: 2 | E56: 7 | F56: 27 | G56: 2Sábado | H56: Sábado | J56: 8Sábado
B57: 9 | C57: 2010-02-21 | D57: 2 | E57: 1 | F57: 21 | G57: 2Domingo | H57: Domingo | I57: 21-27 | J57: 9Domingo
B58: 9 | C58: 2010-02-22 | D58: 2 | E58: 2 | F58: 22 | G58: 2Segunda-feira | H58: Segunda-feira | J58: 9Segunda-feira
B59: 9 | C59: 2010-02-23 | D59: 2 | E59: 3 | F59: 23 | G59: 2Terça-feira | H59: Terça-feira | J59: 9Terça-feira
B60: 9 | C60: 2010-02-24 | D60: 2 | E60: 4 | F60: 24 | G60: 2Quarta-feira | H60: Quarta-feira | J60: 9Quarta-feira
B61: 9 | C61: 2010-02-25 | D61: 2 | E61: 5 | F61: 25 | G61: 2Quinta-feira | H61: Quinta-feira | J61: 9Quinta-feira
B62: 9 | C62: 2010-02-26 | D62: 2 | E62: 6 | F62: 26 | G62: 2Sexta-feira | H62: Sexta-feira | J62: 9Sexta-feira
B63: 9 | C63: 2010-02-27 | D63: 2 | E63: 7 | F63: 27 | G63: 2Sábado | H63: Sábado | J63: 9Sábado
B64: 10 | C64: 2010-02-28 | D64: 2 | E64: 1 | F64: 21 | G64: 2Domingo | H64: Domingo | I64: 28-06 | J64: 10Domingo
B65: 10 | C65: 2010-03-01 | D65: 3 | E65: 2 | F65: 32 | G65: 3Segunda-feira | H65: Segunda-feira | J65: 10Segunda-feira
B66: 10 | C66: 2010-03-02 | D66: 3 | E66: 3 | F66: 33 | G66: 3Terça-feira | H66: Terça-feira | J66: 10Terça-feira
B67: 10 | C67: 2010-03-03 | D67: 3 | E67: 4 | F67: 34 | G67: 3Quarta-feira | H67: Quarta-feira | J67: 10Quarta-feira
B68: 10 | C68: 2010-03-04 | D68: 3 | E68: 5 | F68: 35 | G68: 3Quinta-feira | H68: Quinta-feira | J68: 10Quinta-feira
B69: 10 | C69: 2010-03-05 | D69: 3 | E69: 6 | F69: 36 | G69: 3Sexta-feira | H69: Sexta-feira | J69: 10Sexta-feira
B70: =WEEKNUM(C70) -> 10 | C70: 2010-03-06 | D70: =MONTH(C70) -> 3 | E70: =WEEKDAY(C70) -> 7 | F70: 37 | G70: 3Sábado | H70: =IF(ISNA(VLOOKUP(C70,feriados,1,FALSE)),VLOOKUP(WEEKDAY(C70,1),$R$6:$S$12,2,TRUE),"Feriado") -> Sábado | J70: =CONCATENATE(B70,H70) -> 10Sábado
B71: 11 | C71: =+C70+1 -> 2010-03-07 | D71: 3 | E71: 1 | F71: =D71&E71 -> 31 | G71: =IF(AND(OR(E71=1,E71=7),H71="feriado"),"",CONCATENATE(D71,H71)) -> 3Domingo | H71: Domingo | I71: =IF(E71=1,TEXT(DAY(C71),"dd")&"-"&TEXT(DAY(C71+7-E71),"dd"),"") -> 07-13 | J71: 11Domingo
B72: 11 | C72: 2010-03-08 | D72: 3 | E72: 2 | F72: 32 | G72: 3Segunda-feira | H72: Segunda-feira | J72: 11Segunda-feira
B73: 11 | C73: 2010-03-09 | D73: 3 | E73: 3 | F73: 33 | G73: 3Terça-feira | H73: Terça-feira | J73: 11Terça-feira
B74: 11 | C74: 2010-03-10 | D74: 3 | E74: 4 | F74: 34 | G74: 3Quarta-feira | H74: Quarta-feira | J74: 11Quarta-feira
B75: 11 | C75: 2010-03-11 | D75: 3 | E75: 5 | F75: 35 | G75: 3Quinta-feira | H75: Quinta-feira | J75: 11Quinta-feira
B76: 11 | C76: 2010-03-12 | D76: 3 | E76: 6 | F76: 36 | G76: 3Sexta-feira | H76: Sexta-feira | J76: 11Sexta-feira
B77: 11 | C77: 2010-03-13 | D77: 3 | E77: 7 | F77: 37 | G77: 3Sábado | H77: Sábado | J77: 11Sábado
B78: 12 | C78: 2010-03-14 | D78: 3 | E78: 1 | F78: 31 | G78: 3Domingo | H78: Domingo | I78: 14-20 | J78: 12Domingo
B79: 12 | C79: 2010-03-15 | D79: 3 | E79: 2 | F79: 32 | G79: 3Segunda-feira | H79: Segunda-feira | J79: 12Segunda-feira
B80: 12 | C80: 2010-03-16 | D80: 3 | E80: 3 | F80: 33 | G80: 3Terça-feira | H80: Terça-feira | J80: 12Terça-feira
B81: 12 | C81: 2010-03-17 | D81: 3 | E81: 4 | F81: 34 | G81: 3Quarta-feira | H81: Quarta-feira | J81: 12Quarta-feira
B82: 12 | C82: 2010-03-18 | D82: 3 | E82: 5 | F82: 35 | G82: 3Quinta-feira | H82: Quinta-feira | J82: 12Quinta-feira
B83: 12 | C83: 2010-03-19 | D83: 3 | E83: 6 | F83: 36 | G83: 3Sexta-feira | H83: Sexta-feira | J83: 12Sexta-feira
B84: 12 | C84: 2010-03-20 | D84: 3 | E84: 7 | F84: 37 | G84: 3Sábado | H84: Sábado | J84: 12Sábado
B85: 13 | C85: 2010-03-21 | D85: 3 | E85: 1 | F85: 31 | G85: 3Domingo | H85: Domingo | I85: 21-27 | J85: 13Domingo
B86: 13 | C86: 2010-03-22 | D86: 3 | E86: 2 | F86: 32 | G86: 3Segunda-feira | H86: Segunda-feira | J86: 13Segunda-feira
B87: 13 | C87: 2010-03-23 | D87: 3 | E87: 3 | F87: 33 | G87: 3Terça-feira | H87: Terça-feira | J87: 13Terça-feira
B88: 13 | C88: 2010-03-24 | D88: 3 | E88: 4 | F88: 34 | G88: 3Quarta-feira | H88: Quarta-feira | J88: 13Quarta-feira
B89: 13 | C89: 2010-03-25 | D89: 3 | E89: 5 | F89: 35 | G89: 3Quinta-feira | H89: Quinta-feira | J89: 13Quinta-feira
B90: 13 | C90: 2010-03-26 | D90: 3 | E90: 6 | F90: 36 | G90: 3Sexta-feira | H90: Sexta-feira | J90: 13Sexta-feira
B91: 13 | C91: 2010-03-27 | D91: 3 | E91: 7 | F91: 37 | G91: 3Sábado | H91: Sábado | J91: 13Sábado
B92: 14 | C92: 2010-03-28 | D92: 3 | E92: 1 | F92: 31 | G92: 3Domingo | H92: Domingo | I92: 28-03 | J92: 14Domingo
B93: 14 | C93: 2010-03-29 | D93: 3 | E93: 2 | F93: 32 | G93: 3Segunda-feira | H93: Segunda-feira | J93: 14Segunda-feira
B94: 14 | C94: 2010-03-30 | D94: 3 | E94: 3 | F94: 33 | G94: 3Terça-feira | H94: Terça-feira | J94: 14Terça-feira
B95: 14 | C95: 2010-03-31 | D95: 3 | E95: 4 | F95: 34 | G95: 3Quarta-feira | H95: Quarta-feira | J95: 14Quarta-feira
B96: 14 | C96: 2010-04-01 | D96: 4 | E96: 5 | F96: 45 | G96: 4Quinta-feira | H96: Quinta-feira | J96: 14Quinta-feira
B97: 14 | C97: 2010-04-02 | D97: 4 | E97: 6 | F97: 46 | G97: 4Sexta-feira | H97: Sexta-feira | J97: 14Sexta-feira
B98: 14 | C98: 2010-04-03 | D98: 4 | E98: 7 | F98: 47 | G98: 4Sábado | H98: Sábado | J98: 14Sábado
B99: 15 | C99: 2010-04-04 | D99: 4 | E99: 1 | F99: 41 | H99: Feriado | I99: 04-10 | J99: 15Feriado
B100: 15 | C100: 2010-04-05 | D100: 4 | E100: 2 | F100: 42 | G100: 4Segunda-feira | H100: Segunda-feira | J100: 15Segunda-feira
B101: 15 | C101: 2010-04-06 | D101: 4 | E101: 3 | F101: 43 | G101: 4Terça-feira | H101: Terça-feira | J101: 15Terça-feira
B102: 15 | C102: 2010-04-07 | D102: 4 | E102: 4 | F102: 44 | G102: 4Quarta-feira | H102: Quarta-feira | J102: 15Quarta-feira
B103: 15 | C103: 2010-04-08 | D103: 4 | E103: 5 | F103: 45 | G103: 4Quinta-feira | H103: Quinta-feira | J103: 15Quinta-feira
B104: 15 | C104: 2010-04-09 | D104: 4 | E104: 6 | F104: 46 | G104: 4Sexta-feira | H104: Sexta-feira | J104: 15Sexta-feira
B105: 15 | C105: 2010-04-10 | D105: 4 | E105: 7 | F105: 47 | G105: 4Sábado | H105: Sábado | J105: 15Sábado
B106: 16 | C106: 2010-04-11 | D106: 4 | E106: 1 | F106: 41 | G106: 4Domingo | H106: Domingo | I106: 11-17 | J106: 16Domingo
B107: 16 | C107: 2010-04-12 | D107: 4 | E107: 2 | F107: 42 | G107: 4Segunda-feira | H107: Segunda-feira | J107: 16Segunda-feira
B108: 16 | C108: 2010-04-13 | D108: 4 | E108: 3 | F108: 43 | G108: 4Terça-feira | H108: Terça-feira | J108: 16Terça-feira
B109: 16 | C109: 2010-04-14 | D109: 4 | E109: 4 | F109: 44 | G109: 4Quarta-feira | H109: Quarta-feira | J109: 16Quarta-feira
B110: 16 | C110: 2010-04-15 | D110: 4 | E110: 5 | F110: 45 | G110: 4Quinta-feira | H110: Quinta-feira | J110: 16Quinta-feira
B111: 16 | C111: 2010-04-16 | D111: 4 | E111: 6 | F111: 46 | G111: 4Sexta-feira | H111: Sexta-feira | J111: 16Sexta-feira
B112: 16 | C112: 2010-04-17 | D112: 4 | E112: 7 | F112: 47 | G112: 4Sábado | H112: Sábado | J112: 16Sábado
B113: 17 | C113: 2010-04-18 | D113: 4 | E113: 1 | F113: 41 | G113: 4Domingo | H113: Domingo | I113: 18-24 | J113: 17Domingo
B114: 17 | C114: 2010-04-19 | D114: 4 | E114: 2 | F114: 42 | G114: 4Segunda-feira | H114: Segunda-feira | J114: 17Segunda-feira
B115: 17 | C115: 2010-04-20 | D115: 4 | E115: 3 | F115: 43 | G115: 4Terça-feira | H115: Terça-feira | J115: 17Terça-feira
B116: 17 | C116: 2010-04-21 | D116: 4 | E116: 4 | F116: 44 | G116: 4Feriado | H116: Feriado | J116: 17Feriado
B117: 17 | C117: 2010-04-22 | D117: 4 | E117: 5 | F117: 45 | G117: 4Quinta-feira | H117: Quinta-feira | J117: 17Quinta-feira
B118: 17 | C118: 2010-04-23 | D118: 4 | E118: 6 | F118: 46 | G118: 4Sexta-feira | H118: Sexta-feira | J118: 17Sexta-feira
B119: 17 | C119: 2010-04-24 | D119: 4 | E119: 7 | F119: 47 | G119: 4Sábado | H119: Sábado | J119: 17Sábado
B120: 18 | C120: 2010-04-25 | D120: 4 | E120: 1 | F120: 41 | G120: 4Domingo | H120: Domingo | I120: 25-01 | J120: 18Domingo
B121: 18 | C121: 2010-04-26 | D121: 4 | E121: 2 | F121: 42 | G121: 4Segunda-feira | H121: Segunda-feira | J121: 18Segunda-feira
B122: 18 | C122: 2010-04-27 | D122: 4 | E122: 3 | F122: 43 | G122: 4Terça-feira | H122: Terça-feira | J122: 18Terça-feira
B123: 18 | C123: 2010-04-28 | D123: 4 | E123: 4 | F123: 44 | G123: 4Quarta-feira | H123: Quarta-feira | J123: 18Quarta-feira
B124: 18 | C124: 2010-04-29 | D124: 4 | E124: 5 | F124: 45 | G124: 4Quinta-feira | H124: Quinta-feira | J124: 18Quinta-feira
B125: 18 | C125: 2010-04-30 | D125: 4 | E125: 6 | F125: 46 | G125: 4Sexta-feira | H125: Sexta-feira | J125: 18Sexta-feira
B126: 18 | C126: 2010-05-01 | D126: 5 | E126: 7 | F126: 57 | H126: Feriado | J126: 18Feriado
B127: 19 | C127: 2010-05-02 | D127: 5 | E127: 1 | F127: 51 | G127: 5Domingo | H127: Domingo | I127: 02-08 | J127: 19Domingo
B128: 19 | C128: 2010-05-03 | D128: 5 | E128: 2 | F128: 52 | G128: 5Segunda-feira | H128: Segunda-feira | J128: 19Segunda-feira
B129: 19 | C129: 2010-05-04 | D129: 5 | E129: 3 | F129: 53 | G129: 5Terça-feira | H129: Terça-feira | J129: 19Terça-feira
B130: 19 | C130: 2010-05-05 | D130: 5 | E130: 4 | F130: 54 | G130: 5Quarta-feira | H130: Quarta-feira | J130: 19Quarta-feira
B131: 19 | C131: 2010-05-06 | D131: 5 | E131: 5 | F131: 55 | G131: 5Quinta-feira | H131: Quinta-feira | J131: 19Quinta-feira
B132: 19 | C132: 2010-05-07 | D132: 5 | E132: 6 | F132: 56 | G132: 5Sexta-feira | H132: Sexta-feira | J132: 19Sexta-feira
B133: 19 | C133: 2010-05-08 | D133: 5 | E133: 7 | F133: 57 | G133: 5Sábado | H133: Sábado | J133: 19Sábado
B134: =WEEKNUM(C134) -> 20 | C134: 2010-05-09 | D134: =MONTH(C134) -> 5 | E134: =WEEKDAY(C134) -> 1 | F134: 51 | G134: 5Domingo | H134: =IF(ISNA(VLOOKUP(C134,feriados,1,FALSE)),VLOOKUP(WEEKDAY(C134,1),$R$6:$S$12,2,TRUE),"Feriado") -> Domingo | I134: 09-15 | J134: =CONCATENATE(B134,H134) -> 20Domingo
B135: 20 | C135: =+C134+1 -> 2010-05-10 | D135: 5 | E135: 2 | F135: =D135&E135 -> 52 | G135: =IF(AND(OR(E135=1,E135=7),H135="feriado"),"",CONCATENATE(D135,H135)) -> 5Segunda-feira | H135: Segunda-feira | I135: =IF(E135=1,TEXT(DAY(C135),"dd")&"-"&TEXT(DAY(C135+7-E135),"dd"),"") ->  | J135: 20Segunda-feira
B136: 20 | C136: 2010-05-11 | D136: 5 | E136: 3 | F136: 53 | G136: 5Terça-feira | H136: Terça-feira | J136: 20Terça-feira
B137: 20 | C137: 2010-05-12 | D137: 5 | E137: 4 | F137: 54 | G137: 5Quarta-feira | H137: Quarta-feira | J137: 20Quarta-feira
B138: 20 | C138: 2010-05-13 | D138: 5 | E138: 5 | F138: 55 | G138: 5Quinta-feira | H138: Quinta-feira | J138: 20Quinta-feira
B139: 20 | C139: 2010-05-14 | D139: 5 | E139: 6 | F139: 56 | G139: 5Sexta-feira | H139: Sexta-feira | J139: 20Sexta-feira
B140: 20 | C140: 2010-05-15 | D140: 5 | E140: 7 | F140: 57 | G140: 5Sábado | H140: Sábado | J140: 20Sábado
B141: 21 | C141: 2010-05-16 | D141: 5 | E141: 1 | F141: 51 | G141: 5Domingo | H141: Domingo | I141: 16-22 | J141: 21Domingo
B142: 21 | C142: 2010-05-17 | D142: 5 | E142: 2 | F142: 52 | G142: 5Segunda-feira | H142: Segunda-feira | J142: 21Segunda-feira
B143: 21 | C143: 2010-05-18 | D143: 5 | E143: 3 | F143: 53 | G143: 5Terça-feira | H143: Terça-feira | J143: 21Terça-feira
B144: 21 | C144: 2010-05-19 | D144: 5 | E144: 4 | F144: 54 | G144: 5Quarta-feira | H144: Quarta-feira | J144: 21Quarta-feira
B145: 21 | C145: 2010-05-20 | D145: 5 | E145: 5 | F145: 55 | G145: 5Quinta-feira | H145: Quinta-feira | J145: 21Quinta-feira
B146: 21 | C146: 2010-05-21 | D146: 5 | E146: 6 | F146: 56 | G146: 5Sexta-feira | H146: Sexta-feira | J146: 21Sexta-feira
B147: 21 | C147: 2010-05-22 | D147: 5 | E147: 7 | F147: 57 | G147: 5Sábado | H147: Sábado | J147: 21Sábado
B148: 22 | C148: 2010-05-23 | D148: 5 | E148: 1 | F148: 51 | G148: 5Domingo | H148: Domingo | I148: 23-29 | J148: 22Domingo
B149: 22 | C149: 2010-05-24 | D149: 5 | E149: 2 | F149: 52 | G149: 5Segunda-feira | H149: Segunda-feira | J149: 22Segunda-feira
B150: 22 | C150: 2010-05-25 | D150: 5 | E150: 3 | F150: 53 | G150: 5Terça-feira | H150: Terça-feira | J150: 22Terça-feira
B151: 22 | C151: 2010-05-26 | D151: 5 | E151: 4 | F151: 54 | G151: 5Quarta-feira | H151: Quarta-feira | J151: 22Quarta-feira
B152: 22 | C152: 2010-05-27 | D152: 5 | E152: 5 | F152: 55 | G152: 5Quinta-feira | H152: Quinta-feira | J152: 22Quinta-feira
B153: 22 | C153: 2010-05-28 | D153: 5 | E153: 6 | F153: 56 | G153: 5Sexta-feira | H153: Sexta-feira | J153: 22Sexta-feira
B154: 22 | C154: 2010-05-29 | D154: 5 | E154: 7 | F154: 57 | G154: 5Sábado | H154: Sábado | J154: 22Sábado
B155: 23 | C155: 2010-05-30 | D155: 5 | E155: 1 | F155: 51 | G155: 5Domingo | H155: Domingo | I155: 30-05 | J155: 23Domingo
B156: 23 | C156: 2010-05-31 | D156: 5 | E156: 2 | F156: 52 | G156: 5Segunda-feira | H156: Segunda-feira | J156: 23Segunda-feira
B157: 23 | C157: 2010-06-01 | D157: 6 | E157: 3 | F157: 63 | G157: 6Terça-feira | H157: Terça-feira | J157: 23Terça-feira
B158: 23 | C158: 2010-06-02 | D158: 6 | E158: 4 | F158: 64 | G158: 6Quarta-feira | H158: Quarta-feira | J158: 23Quarta-feira
B159: 23 | C159: 2010-06-03 | D159: 6 | E159: 5 | F159: 65 | G159: 6Quinta-feira | H159: Quinta-feira | J159: 23Quinta-feira
B160: 23 | C160: 2010-06-04 | D160: 6 | E160: 6 | F160: 66 | G160: 6Sexta-feira | H160: Sexta-feira | J160: 23Sexta-feira
B161: 23 | C161: 2010-06-05 | D161: 6 | E161: 7 | F161: 67 | G161: 6Sábado | H161: Sábado | J161: 23Sábado
B162: 24 | C162: 2010-06-06 | D162: 6 | E162: 1 | F162: 61 | G162: 6Domingo | H162: Domingo | I162: 06-12 | J162: 24Domingo
B163: 24 | C163: 2010-06-07 | D163: 6 | E163: 2 | F163: 62 | G163: 6Segunda-feira | H163: Segunda-feira | J163: 24Segunda-feira
B164: 24 | C164: 2010-06-08 | D164: 6 | E164: 3 | F164: 63 | G164: 6Terça-feira | H164: Terça-feira | J164: 24Terça-feira
B165: 24 | C165: 2010-06-09 | D165: 6 | E165: 4 | F165: 64 | G165: 6Quarta-feira | H165: Quarta-feira | J165: 24Quarta-feira
B166: 24 | C166: 2010-06-10 | D166: 6 | E166: 5 | F166: 65 | G166: 6Quinta-feira | H166: Quinta-feira | J166: 24Quinta-feira
B167: 24 | C167: 2010-06-11 | D167: 6 | E167: 6 | F167: 66 | G167: 6Sexta-feira | H167: Sexta-feira | J167: 24Sexta-feira
B168: 24 | C168: 2010-06-12 | D168: 6 | E168: 7 | F168: 67 | G168: 6Sábado | H168: Sábado | J168: 24Sábado
B169: 25 | C169: 2010-06-13 | D169: 6 | E169: 1 | F169: 61 | G169: 6Domingo | H169: Domingo | I169: 13-19 | J169: 25Domingo
B170: 25 | C170: 2010-06-14 | D170: 6 | E170: 2 | F170: 62 | G170: 6Segunda-feira | H170: Segunda-feira | J170: 25Segunda-feira
B171: 25 | C171: 2010-06-15 | D171: 6 | E171: 3 | F171: 63 | G171: 6Terça-feira | H171: Terça-feira | J171: 25Terça-feira
B172: 25 | C172: 2010-06-16 | D172: 6 | E172: 4 | F172: 64 | G172: 6Quarta-feira | H172: Quarta-feira | J172: 25Quarta-feira
B173: 25 | C173: 2010-06-17 | D173: 6 | E173: 5 | F173: 65 | G173: 6Quinta-feira | H173: Quinta-feira | J173: 25Quinta-feira
B174: 25 | C174: 2010-06-18 | D174: 6 | E174: 6 | F174: 66 | G174: 6Sexta-feira | H174: Sexta-feira | J174: 25Sexta-feira
B175: 25 | C175: 2010-06-19 | D175: 6 | E175: 7 | F175: 67 | G175: 6Sábado | H175: Sábado | J175: 25Sábado
B176: 26 | C176: 2010-06-20 | D176: 6 | E176: 1 | F176: 61 | G176: 6Domingo | H176: Domingo | I176: 20-26 | J176: 26Domingo
B177: 26 | C177: 2010-06-21 | D177: 6 | E177: 2 | F177: 62 | G177: 6Segunda-feira | H177: Segunda-feira | J177: 26Segunda-feira
B178: 26 | C178: 2010-06-22 | D178: 6 | E178: 3 | F178: 63 | G178: 6Terça-feira | H178: Terça-feira | J178: 26Terça-feira
B179: 26 | C179: 2010-06-23 | D179: 6 | E179: 4 | F179: 64 | G179: 6Quarta-feira | H179: Quarta-feira | J179: 26Quarta-feira
B180: 26 | C180: 2010-06-24 | D180: 6 | E180: 5 | F180: 65 | G180: 6Quinta-feira | H180: Quinta-feira | J180: 26Quinta-feira
B181: 26 | C181: 2010-06-25 | D181: 6 | E181: 6 | F181: 66 | G181: 6Sexta-feira | H181: Sexta-feira | J181: 26Sexta-feira
B182: 26 | C182: 2010-06-26 | D182: 6 | E182: 7 | F182: 67 | G182: 6Sábado | H182: Sábado | J182: 26Sábado
B183: 27 | C183: 2010-06-27 | D183: 6 | E183: 1 | F183: 61 | G183: 6Domingo | H183: Domingo | I183: 27-03 | J183: 27Domingo
B184: 27 | C184: 2010-06-28 | D184: 6 | E184: 2 | F184: 62 | G184: 6Segunda-feira | H184: Segunda-feira | J184: 27Segunda-feira
B185: 27 | C185: 2010-06-29 | D185: 6 | E185: 3 | F185: 63 | G185: 6Terça-feira | H185: Terça-feira | J185: 27Terça-feira
B186: 27 | C186: 2010-06-30 | D186: 6 | E186: 4 | F186: 64 | G186: 6Quarta-feira | H186: Quarta-feira | J186: 27Quarta-feira
B187: 27 | C187: 2010-07-01 | D187: 7 | E187: 5 | F187: 75 | G187: 7Quinta-feira | H187: Quinta-feira | J187: 27Quinta-feira
B188: 27 | C188: 2010-07-02 | D188: 7 | E188: 6 | F188: 76 | G188: 7Sexta-feira | H188: Sexta-feira | J188: 27Sexta-feira
B189: 27 | C189: 2010-07-03 | D189: 7 | E189: 7 | F189: 77 | G189: 7Sábado | H189: Sábado | J189: 27Sábado
B190: 28 | C190: 2010-07-04 | D190: 7 | E190: 1 | F190: 71 | G190: 7Domingo | H190: Domingo | I190: 04-10 | J190: 28Domingo
B191: 28 | C191: 2010-07-05 | D191: 7 | E191: 2 | F191: 72 | G191: 7Segunda-feira | H191: Segunda-feira | J191: 28Segunda-feira
B192: 28 | C192: 2010-07-06 | D192: 7 | E192: 3 | F192: 73 | G192: 7Terça-feira | H192: Terça-feira | J192: 28Terça-feira
B193: 28 | C193: 2010-07-07 | D193: 7 | E193: 4 | F193: 74 | G193: 7Quarta-feira | H193: Quarta-feira | J193: 28Quarta-feira
B194: 28 | C194: 2010-07-08 | D194: 7 | E194: 5 | F194: 75 | G194: 7Quinta-feira | H194: Quinta-feira | J194: 28Quinta-feira
B195: 28 | C195: 2010-07-09 | D195: 7 | E195: 6 | F195: 76 | G195: 7Sexta-feira | H195: Sexta-feira | J195: 28Sexta-feira
B196: 28 | C196: 2010-07-10 | D196: 7 | E196: 7 | F196: 77 | G196: 7Sábado | H196: Sábado | J196: 28Sábado
B197: 29 | C197: 2010-07-11 | D197: 7 | E197: 1 | F197: 71 | G197: 7Domingo | H197: Domingo | I197: 11-17 | J197: 29Domingo
B198: =WEEKNUM(C198) -> 29 | C198: 2010-07-12 | D198: =MONTH(C198) -> 7 | E198: =WEEKDAY(C198) -> 2 | F198: 72 | G198: 7Segunda-feira | H198: =IF(ISNA(VLOOKUP(C198,feriados,1,FALSE)),VLOOKUP(WEEKDAY(C198,1),$R$6:$S$12,2,TRUE),"Feriado") -> Segunda-feira | J198: =CONCATENATE(B198,H198) -> 29Segunda-feira
B199: 29 | C199: =+C198+1 -> 2010-07-13 | D199: 7 | E199: 3 | F199: =D199&E199 -> 73 | G199: =IF(AND(OR(E199=1,E199=7),H199="feriado"),"",CONCATENATE(D199,H199)) -> 7Terça-feira | H199: Terça-feira | I199: =IF(E199=1,TEXT(DAY(C199),"dd")&"-"&TEXT(DAY(C199+7-E199),"dd"),"") ->  | J199: 29Terça-feira
B200: 29 | C200: 2010-07-14 | D200: 7 | E200: 4 | F200: 74 | G200: 7Quarta-feira | H200: Quarta-feira | J200: 29Quarta-feira
B201: 29 | C201: 2010-07-15 | D201: 7 | E201: 5 | F201: 75 | G201: 7Quinta-feira | H201: Quinta-feira | J201: 29Quinta-feira
B202: 29 | C202: 2010-07-16 | D202: 7 | E202: 6 | F202: 76 | G202: 7Sexta-feira | H202: Sexta-feira | J202: 29Sexta-feira
B203: 29 | C203: 2010-07-17 | D203: 7 | E203: 7 | F203: 77 | G203: 7Sábado | H203: Sábado | J203: 29Sábado
... 168 more rows
